Workbook

Sheet المخزن
B1: شركة | E1: جملة المخزن | F1: =SUM(G7:G240) -> 6385.5
A2: المخزن | E2: عدد الأصناف بالغرفة | F2: =COUNTA(B7:B240) -> 8
D3: نسبة الربح | E3: 10
A6: م | B6: اسم الصنف | C6: الكمية | D6: السعر للشراء | E6: نسبة الربح | F6: سعر البيع | G6: الجملة
A7: 1 | B7: خشب | C7: 10 | D7: 100 | E7: =data11[[#This Row],[السعر للشراء]]/$E$3 -> 10 | F7: =data11[[#This Row],[نسبة الربح]]+data11[[#This Row],[السعر للشراء]] -> 110 | G7: =data11[[#This Row],[الكمية ]]*data11[[#This Row],[سعر البيع ]] -> 1100
A8: 2 | B8: ابلاكاج | C8: 5 | D8: 15 | E8: =data11[[#This Row],[السعر للشراء]]/$E$3 -> 1.5 | F8: =data11[[#This Row],[نسبة الربح]]+data11[[#This Row],[السعر للشراء]] -> 16.5 | G8: =data11[[#This Row],[الكمية ]]*data11[[#This Row],[سعر البيع ]] -> 82.5
A9: 3 | B9: حلايا | C9: 4 | D9: 200 | E9: =data11[[#This Row],[السعر للشراء]]/$E$3 -> 20 | F9: =data11[[#This Row],[نسبة الربح]]+data11[[#This Row],[السعر للشراء]] -> 220 | G9: =data11[[#This Row],[الكمية ]]*data11[[#This Row],[سعر البيع ]] -> 880
A10: 4 | B10: مون دهان | C10: 3 | D10: 300 | E10: =data11[[#This Row],[السعر للشراء]]/$E$3 -> 30 | F10: =data11[[#This Row],[نسبة الربح]]+data11[[#This Row],[السعر للشراء]] -> 330 | G10: =data11[[#This Row],[الكمية ]]*data11[[#This Row],[سعر البيع ]] -> 990
A11: 5 | B11: مصنعيات دهان | C11: 2 | D11: 15 | E11: =data11[[#This Row],[السعر للشراء]]/$E$3 -> 1.5 | F11: =data11[[#This Row],[نسبة الربح]]+data11[[#This Row],[السعر للشراء]] -> 16.5 | G11: =data11[[#This Row],[الكمية ]]*data11[[#This Row],[سعر البيع ]] -> 33
A12: 6 | B12: مصنعيات نجارة | C12: 15 | D12: 200 | E12: =data11[[#This Row],[السعر للشراء]]/$E$3 -> 20 | F12: =data11[[#This Row],[نسبة الربح]]+data11[[#This Row],[السعر للشراء]] -> 220 | G12: =data11[[#This Row],[الكمية ]]*data11[[#This Row],[سعر البيع ]] -> 3300
A13: 7 | B13: حدايد | E13: =data11[[#This Row],[السعر للشراء]]/$E$3 -> 0 | F13: =data11[[#This Row],[نسبة الربح]]+data11[[#This Row],[السعر للشراء]] -> 0 | G13: =data11[[#This Row],[الكمية ]]*data11[[#This Row],[سعر البيع ]] -> 0
A14: 8 | B14: قشرة | E14: =data11[[#This Row],[السعر للشراء]]/$E$3 -> 0 | F14: =data11[[#This Row],[نسبة الربح]]+data11[[#This Row],[السعر للشراء]] -> 0 | G14: =data11[[#This Row],[الكمية ]]*data11[[#This Row],[سعر البيع ]] -> 0
A15: 9 | E15: =data11[[#This Row],[السعر للشراء]]/$E$3 -> 0 | F15: =data11[[#This Row],[نسبة الربح]]+data11[[#This Row],[السعر للشراء]] -> 0 | G15: =data11[[#This Row],[الكمية ]]*data11[[#This Row],[سعر البيع ]] -> 0
A16: 10 | E16: =data11[[#This Row],[السعر للشراء]]/$E$3 -> 0 | F16: =data11[[#This Row],[نسبة الربح]]+data11[[#This Row],[السعر للشراء]] -> 0 | G16: =data11[[#This Row],[الكمية ]]*data11[[#This Row],[سعر البيع ]] -> 0
A17: 11 | E17: =data11[[#This Row],[السعر للشراء]]/$E$3 -> 0 | F17: =data11[[#This Row],[نسبة الربح]]+data11[[#This Row],[السعر للشراء]] -> 0 | G17: =data11[[#This Row],[الكمية ]]*data11[[#This Row],[سعر البيع ]] -> 0
A18: 12 | E18: =data11[[#This Row],[السعر للشراء]]/$E$3 -> 0 | F18: =data11[[#This Row],[نسبة الربح]]+data11[[#This Row],[السعر للشراء]] -> 0 | G18: =data11[[#This Row],[الكمية ]]*data11[[#This Row],[سعر البيع ]] -> 0
A19: 13 | E19: =data11[[#This Row],[السعر للشراء]]/$E$3 -> 0 | F19: =data11[[#This Row],[نسبة الربح]]+data11[[#This Row],[السعر للشراء]] -> 0 | G19: =data11[[#This Row],[الكمية ]]*data11[[#This Row],[سعر البيع ]] -> 0
A20: 14 | E20: =data11[[#This Row],[السعر للشراء]]/$E$3 -> 0 | F20: =data11[[#This Row],[نسبة الربح]]+data11[[#This Row],[السعر للشراء]] -> 0 | G20: =data11[[#This Row],[الكمية ]]*data11[[#This Row],[سعر البيع ]] -> 0
A21: 15 | E21: =data11[[#This Row],[السعر للشراء]]/$E$3 -> 0 | F21: =data11[[#This Row],[نسبة الربح]]+data11[[#This Row],[السعر للشراء]] -> 0 | G21: =data11[[#This Row],[الكمية ]]*data11[[#This Row],[سعر البيع ]] -> 0
A22: 16 | E22: =data11[[#This Row],[السعر للشراء]]/$E$3 -> 0 | F22: =data11[[#This Row],[نسبة الربح]]+data11[[#This Row],[السعر للشراء]] -> 0 | G22: =data11[[#This Row],[الكمية ]]*data11[[#This Row],[سعر البيع ]] -> 0
A23: 17 | E23: =data11[[#This Row],[السعر للشراء]]/$E$3 -> 0 | F23: =data11[[#This Row],[نسبة الربح]]+data11[[#This Row],[السعر للشراء]] -> 0 | G23: =data11[[#This Row],[الكمية ]]*data11[[#This Row],[سعر البيع ]] -> 0
A24: 18 | E24: =data11[[#This Row],[السعر للشراء]]/$E$3 -> 0 | F24: =data11[[#This Row],[نسبة الربح]]+data11[[#This Row],[السعر للشراء]] -> 0 | G24: =data11[[#This Row],[الكمية ]]*data11[[#This Row],[سعر البيع ]] -> 0
A25: 19 | E25: =data11[[#This Row],[السعر للشراء]]/$E$3 -> 0 | F25: =data11[[#This Row],[نسبة الربح]]+data11[[#This Row],[السعر للشراء]] -> 0 | G25: =data11[[#This Row],[الكمية ]]*data11[[#This Row],[سعر البيع ]] -> 0
A26: 20 | E26: =data11[[#This Row],[السعر للشراء]]/$E$3 -> 0 | F26: =data11[[#This Row],[نسبة الربح]]+data11[[#This Row],[السعر للشراء]] -> 0 | G26: =data11[[#This Row],[الكمية ]]*data11[[#This Row],[سعر البيع ]] -> 0
A27: 21 | E27: =data11[[#This Row],[السعر للشراء]]/$E$3 -> 0 | F27: =data11[[#This Row],[نسبة الربح]]+data11[[#This Row],[السعر للشراء]] -> 0 | G27: =data11[[#This Row],[الكمية ]]*data11[[#This Row],[سعر البيع ]] -> 0
A28: 22 | E28: =data11[[#This Row],[السعر للشراء]]/$E$3 -> 0 | F28: =data11[[#This Row],[نسبة الربح]]+data11[[#This Row],[السعر للشراء]] -> 0 | G28: =data11[[#This Row],[الكمية ]]*data11[[#This Row],[سعر البيع ]] -> 0
A29: 23 | E29: =data11[[#This Row],[السعر للشراء]]/$E$3 -> 0 | F29: =data11[[#This Row],[نسبة الربح]]+data11[[#This Row],[السعر للشراء]] -> 0 | G29: =data11[[#This Row],[الكمية ]]*data11[[#This Row],[سعر البيع ]] -> 0
A30: 24 | E30: =data11[[#This Row],[السعر للشراء]]/$E$3 -> 0 | F30: =data11[[#This Row],[نسبة الربح]]+data11[[#This Row],[السعر للشراء]] -> 0 | G30: =data11[[#This Row],[الكمية ]]*data11[[#This Row],[سعر البيع ]] -> 0
A31: 25 | E31: =data11[[#This Row],[السعر للشراء]]/$E$3 -> 0 | F31: =data11[[#This Row],[نسبة الربح]]+data11[[#This Row],[السعر للشراء]] -> 0 | G31: =data11[[#This Row],[الكمية ]]*data11[[#This Row],[سعر البيع ]] -> 0
A32: 26 | E32: =data11[[#This Row],[السعر للشراء]]/$E$3 -> 0 | F32: =data11[[#This Row],[نسبة الربح]]+data11[[#This Row],[السعر للشراء]] -> 0 | G32: =data11[[#This Row],[الكمية ]]*data11[[#This Row],[سعر البيع ]] -> 0
A33: 27 | E33: =data11[[#This Row],[السعر للشراء]]/$E$3 -> 0 | F33: =data11[[#This Row],[نسبة الربح]]+data11[[#This Row],[السعر للشراء]] -> 0 | G33: =data11[[#This Row],[الكمية ]]*data11[[#This Row],[سعر البيع ]] -> 0
A34: 28 | E34: =data11[[#This Row],[السعر للشراء]]/$E$3 -> 0 | F34: =data11[[#This Row],[نسبة الربح]]+data11[[#This Row],[السعر للشراء]] -> 0 | G34: =data11[[#This Row],[الكمية ]]*data11[[#This Row],[سعر البيع ]] -> 0
A35: 29 | E35: =data11[[#This Row],[السعر للشراء]]/$E$3 -> 0 | F35: =data11[[#This Row],[نسبة الربح]]+data11[[#This Row],[السعر للشراء]] -> 0 | G35: =data11[[#This Row],[الكمية ]]*data11[[#This Row],[سعر البيع ]] -> 0
A36: 30 | E36: =data11[[#This Row],[السعر للشراء]]/$E$3 -> 0 | F36: =data11[[#This Row],[نسبة الربح]]+data11[[#This Row],[السعر للشراء]] -> 0 | G36: =data11[[#This Row],[الكمية ]]*data11[[#This Row],[سعر البيع ]] -> 0
A37: 31 | E37: =data11[[#This Row],[السعر للشراء]]/$E$3 -> 0 | F37: =data11[[#This Row],[نسبة الربح]]+data11[[#This Row],[السعر للشراء]] -> 0 | G37: =data11[[#This Row],[الكمية ]]*data11[[#This Row],[سعر البيع ]] -> 0
A38: 32 | E38: =data11[[#This Row],[السعر للشراء]]/$E$3 -> 0 | F38: =data11[[#This Row],[نسبة الربح]]+data11[[#This Row],[السعر للشراء]] -> 0 | G38: =data11[[#This Row],[الكمية ]]*data11[[#This Row],[سعر البيع ]] -> 0
A39: 33 | E39: =data11[[#This Row],[السعر للشراء]]/$E$3 -> 0 | F39: =data11[[#This Row],[نسبة الربح]]+data11[[#This Row],[السعر للشراء]] -> 0 | G39: =data11[[#This Row],[الكمية ]]*data11[[#This Row],[سعر البيع ]] -> 0
A40: 34 | E40: =data11[[#This Row],[السعر للشراء]]/$E$3 -> 0 | F40: =data11[[#This Row],[نسبة الربح]]+data11[[#This Row],[السعر للشراء]] -> 0 | G40: =data11[[#This Row],[الكمية ]]*data11[[#This Row],[سعر البيع ]] -> 0
A41: 35 | E41: =data11[[#This Row],[السعر للشراء]]/$E$3 -> 0 | F41: =data11[[#This Row],[نسبة الربح]]+data11[[#This Row],[السعر للشراء]] -> 0 | G41: =data11[[#This Row],[الكمية ]]*data11[[#This Row],[سعر البيع ]] -> 0
A42: 36 | E42: =data11[[#This Row],[السعر للشراء]]/$E$3 -> 0 | F42: =data11[[#This Row],[نسبة الربح]]+data11[[#This Row],[السعر للشراء]] -> 0 | G42: =data11[[#This Row],[الكمية ]]*data11[[#This Row],[سعر البيع ]] -> 0
A43: 37 | E43: =data11[[#This Row],[السعر للشراء]]/$E$3 -> 0 | F43: =data11[[#This Row],[نسبة الربح]]+data11[[#This Row],[السعر للشراء]] -> 0 | G43: =data11[[#This Row],[الكمية ]]*data11[[#This Row],[سعر البيع ]] -> 0
A44: 38 | E44: =data11[[#This Row],[السعر للشراء]]/$E$3 -> 0 | F44: =data11[[#This Row],[نسبة الربح]]+data11[[#This Row],[السعر للشراء]] -> 0 | G44: =data11[[#This Row],[الكمية ]]*data11[[#This Row],[سعر البيع ]] -> 0
A45: 39 | E45: =data11[[#This Row],[السعر للشراء]]/$E$3 -> 0 | F45: =data11[[#This Row],[نسبة الربح]]+data11[[#This Row],[السعر للشراء]] -> 0 | G45: =data11[[#This Row],[الكمية ]]*data11[[#This Row],[سعر البيع ]] -> 0
A46: 40 | E46: =data11[[#This Row],[السعر للشراء]]/$E$3 -> 0 | F46: =data11[[#This Row],[نسبة الربح]]+data11[[#This Row],[السعر للشراء]] -> 0 | G46: =data11[[#This Row],[الكمية ]]*data11[[#This Row],[سعر البيع ]] -> 0
A47: 41 | E47: =data11[[#This Row],[السعر للشراء]]/$E$3 -> 0 | F47: =data11[[#This Row],[نسبة الربح]]+data11[[#This Row],[السعر للشراء]] -> 0 | G47: =data11[[#This Row],[الكمية ]]*data11[[#This Row],[سعر البيع ]] -> 0
A48: 42 | E48: =data11[[#This Row],[السعر للشراء]]/$E$3 -> 0 | F48: =data11[[#This Row],[نسبة الربح]]+data11[[#This Row],[السعر للشراء]] -> 0 | G48: =data11[[#This Row],[الكمية ]]*data11[[#This Row],[سعر البيع ]] -> 0
A49: 43 | E49: =data11[[#This Row],[السعر للشراء]]/$E$3 -> 0 | F49: =data11[[#This Row],[نسبة الربح]]+data11[[#This Row],[السعر للشراء]] -> 0 | G49: =data11[[#This Row],[الكمية ]]*data11[[#This Row],[سعر البيع ]] -> 0
A50: 44 | E50: =data11[[#This Row],[السعر للشراء]]/$E$3 -> 0 | F50: =data11[[#This Row],[نسبة الربح]]+data11[[#This Row],[السعر للشراء]] -> 0 | G50: =data11[[#This Row],[الكمية ]]*data11[[#This Row],[سعر البيع ]] -> 0
A51: 45 | E51: =data11[[#This Row],[السعر للشراء]]/$E$3 -> 0 | F51: =data11[[#This Row],[نسبة الربح]]+data11[[#This Row],[السعر للشراء]] -> 0 | G51: =data11[[#This Row],[الكمية ]]*data11[[#This Row],[سعر البيع ]] -> 0
A52: 46 | E52: =data11[[#This Row],[السعر للشراء]]/$E$3 -> 0 | F52: =data11[[#This Row],[نسبة الربح]]+data11[[#This Row],[السعر للشراء]] -> 0 | G52: =data11[[#This Row],[الكمية ]]*data11[[#This Row],[سعر البيع ]] -> 0
A53: 47 | E53: =data11[[#This Row],[السعر للشراء]]/$E$3 -> 0 | F53: =data11[[#This Row],[نسبة الربح]]+data11[[#This Row],[السعر للشراء]] -> 0 | G53: =data11[[#This Row],[الكمية ]]*data11[[#This Row],[سعر البيع ]] -> 0
A54: 48 | E54: =data11[[#This Row],[السعر للشراء]]/$E$3 -> 0 | F54: =data11[[#This Row],[نسبة الربح]]+data11[[#This Row],[السعر للشراء]] -> 0 | G54: =data11[[#This Row],[الكمية ]]*data11[[#This Row],[سعر البيع ]] -> 0
A55: 49 | E55: =data11[[#This Row],[السعر للشراء]]/$E$3 -> 0 | F55: =data11[[#This Row],[نسبة الربح]]+data11[[#This Row],[السعر للشراء]] -> 0 | G55: =data11[[#This Row],[الكمية ]]*data11[[#This Row],[سعر البيع ]] -> 0
A56: 50 | E56: =data11[[#This Row],[السعر للشراء]]/$E$3 -> 0 | F56: =data11[[#This Row],[نسبة الربح]]+data11[[#This Row],[السعر للشراء]] -> 0 | G56: =data11[[#This Row],[الكمية ]]*data11[[#This Row],[سعر البيع ]] -> 0
A57: 51 | E57: =data11[[#This Row],[السعر للشراء]]/$E$3 -> 0 | F57: =data11[[#This Row],[نسبة الربح]]+data11[[#This Row],[السعر للشراء]] -> 0 | G57: =data11[[#This Row],[الكمية ]]*data11[[#This Row],[سعر البيع ]] -> 0
A58: 52 | E58: =data11[[#This Row],[السعر للشراء]]/$E$3 -> 0 | F58: =data11[[#This Row],[نسبة الربح]]+data11[[#This Row],[السعر للشراء]] -> 0 | G58: =data11[[#This Row],[الكمية ]]*data11[[#This Row],[سعر البيع ]] -> 0
A59: 53 | E59: =data11[[#This Row],[السعر للشراء]]/$E$3 -> 0 | F59: =data11[[#This Row],[نسبة الربح]]+data11[[#This Row],[السعر للشراء]] -> 0 | G59: =data11[[#This Row],[الكمية ]]*data11[[#This Row],[سعر البيع ]] -> 0
A60: 54 | E60: =data11[[#This Row],[السعر للشراء]]/$E$3 -> 0 | F60: =data11[[#This Row],[نسبة الربح]]+data11[[#This Row],[السعر للشراء]] -> 0 | G60: =data11[[#This Row],[الكمية ]]*data11[[#This Row],[سعر البيع ]] -> 0
A61: 55 | E61: =data11[[#This Row],[السعر للشراء]]/$E$3 -> 0 | F61: =data11[[#This Row],[نسبة الربح]]+data11[[#This Row],[السعر للشراء]] -> 0 | G61: =data11[[#This Row],[الكمية ]]*data11[[#This Row],[سعر البيع ]] -> 0
A62: 56 | E62: =data11[[#This Row],[السعر للشراء]]/$E$3 -> 0 | F62: =data11[[#This Row],[نسبة الربح]]+data11[[#This Row],[السعر للشراء]] -> 0 | G62: =data11[[#This Row],[الكمية ]]*data11[[#This Row],[سعر البيع ]] -> 0
A63: 57 | E63: =data11[[#This Row],[السعر للشراء]]/$E$3 -> 0 | F63: =data11[[#This Row],[نسبة الربح]]+data11[[#This Row],[السعر للشراء]] -> 0 | G63: =data11[[#This Row],[الكمية ]]*data11[[#This Row],[سعر البيع ]] -> 0
A64: 58 | E64: =data11[[#This Row],[السعر للشراء]]/$E$3 -> 0 | F64: =data11[[#This Row],[نسبة الربح]]+data11[[#This Row],[السعر للشراء]] -> 0 | G64: =data11[[#This Row],[الكمية ]]*data11[[#This Row],[سعر البيع ]] -> 0
A65: 59 | E65: =data11[[#This Row],[السعر للشراء]]/$E$3 -> 0 | F65: =data11[[#This Row],[نسبة الربح]]+data11[[#This Row],[السعر للشراء]] -> 0 | G65: =data11[[#This Row],[الكمية ]]*data11[[#This Row],[سعر البيع ]] -> 0
A66: 60 | E66: =data11[[#This Row],[السعر للشراء]]/$E$3 -> 0 | F66: =data11[[#This Row],[نسبة الربح]]+data11[[#This Row],[السعر للشراء]] -> 0 | G66: =data11[[#This Row],[الكمية ]]*data11[[#This Row],[سعر البيع ]] -> 0
A67: 61 | E67: =data11[[#This Row],[السعر للشراء]]/$E$3 -> 0 | F67: =data11[[#This Row],[نسبة الربح]]+data11[[#This Row],[السعر للشراء]] -> 0 | G67: =data11[[#This Row],[الكمية ]]*data11[[#This Row],[سعر البيع ]] -> 0
A68: 62 | E68: =data11[[#This Row],[السعر للشراء]]/$E$3 -> 0 | F68: =data11[[#This Row],[نسبة الربح]]+data11[[#This Row],[السعر للشراء]] -> 0 | G68: =data11[[#This Row],[الكمية ]]*data11[[#This Row],[سعر البيع ]] -> 0
A69: 63 | E69: =data11[[#This Row],[السعر للشراء]]/$E$3 -> 0 | F69: =data11[[#This Row],[نسبة الربح]]+data11[[#This Row],[السعر للشراء]] -> 0 | G69: =data11[[#This Row],[الكمية ]]*data11[[#This Row],[سعر البيع ]] -> 0
A70: 64 | E70: =data11[[#This Row],[السعر للشراء]]/$E$3 -> 0 | F70: =data11[[#This Row],[نسبة الربح]]+data11[[#This Row],[السعر للشراء]] -> 0 | G70: =data11[[#This Row],[الكمية ]]*data11[[#This Row],[سعر البيع ]] -> 0
A71: 65 | E71: =data11[[#This Row],[السعر للشراء]]/$E$3 -> 0 | F71: =data11[[#This Row],[نسبة الربح]]+data11[[#This Row],[السعر للشراء]] -> 0 | G71: =data11[[#This Row],[الكمية ]]*data11[[#This Row],[سعر البيع ]] -> 0
A72: 66 | E72: =data11[[#This Row],[السعر للشراء]]/$E$3 -> 0 | F72: =data11[[#This Row],[نسبة الربح]]+data11[[#This Row],[السعر للشراء]] -> 0 | G72: =data11[[#This Row],[الكمية ]]*data11[[#This Row],[سعر البيع ]] -> 0
A73: 67 | E73: =data11[[#This Row],[السعر للشراء]]/$E$3 -> 0 | F73: =data11[[#This Row],[نسبة الربح]]+data11[[#This Row],[السعر للشراء]] -> 0 | G73: =data11[[#This Row],[الكمية ]]*data11[[#This Row],[سعر البيع ]] -> 0
A74: 68 | E74: =data11[[#This Row],[السعر للشراء]]/$E$3 -> 0 | F74: =data11[[#This Row],[نسبة الربح]]+data11[[#This Row],[السعر للشراء]] -> 0 | G74: =data11[[#This Row],[الكمية ]]*data11[[#This Row],[سعر البيع ]] -> 0
A75: 69 | E75: =data11[[#This Row],[السعر للشراء]]/$E$3 -> 0 | F75: =data11[[#This Row],[نسبة الربح]]+data11[[#This Row],[السعر للشراء]] -> 0 | G75: =data11[[#This Row],[الكمية ]]*data11[[#This Row],[سعر البيع ]] -> 0
A76: 70 | E76: =data11[[#This Row],[السعر للشراء]]/$E$3 -> 0 | F76: =data11[[#This Row],[نسبة الربح]]+data11[[#This Row],[السعر للشراء]] -> 0 | G76: =data11[[#This Row],[الكمية ]]*data11[[#This Row],[سعر البيع ]] -> 0
A77: 71 | E77: =data11[[#This Row],[السعر للشراء]]/$E$3 -> 0 | F77: =data11[[#This Row],[نسبة الربح]]+data11[[#This Row],[السعر للشراء]] -> 0 | G77: =data11[[#This Row],[الكمية ]]*data11[[#This Row],[سعر البيع ]] -> 0
A78: 72 | E78: =data11[[#This Row],[السعر للشراء]]/$E$3 -> 0 | F78: =data11[[#This Row],[نسبة الربح]]+data11[[#This Row],[السعر للشراء]] -> 0 | G78: =data11[[#This Row],[الكمية ]]*data11[[#This Row],[سعر البيع ]] -> 0
A79: 73 | E79: =data11[[#This Row],[السعر للشراء]]/$E$3 -> 0 | F79: =data11[[#This Row],[نسبة الربح]]+data11[[#This Row],[السعر للشراء]] -> 0 | G79: =data11[[#This Row],[الكمية ]]*data11[[#This Row],[سعر البيع ]] -> 0
A80: 74 | E80: =data11[[#This Row],[السعر للشراء]]/$E$3 -> 0 | F80: =data11[[#This Row],[نسبة الربح]]+data11[[#This Row],[السعر للشراء]] -> 0 | G80: =data11[[#This Row],[الكمية ]]*data11[[#This Row],[سعر البيع ]] -> 0
A81: 75 | E81: =data11[[#This Row],[السعر للشراء]]/$E$3 -> 0 | F81: =data11[[#This Row],[نسبة الربح]]+data11[[#This Row],[السعر للشراء]] -> 0 | G81: =data11[[#This Row],[الكمية ]]*data11[[#This Row],[سعر البيع ]] -> 0
A82: 76 | E82: =data11[[#This Row],[السعر للشراء]]/$E$3 -> 0 | F82: =data11[[#This Row],[نسبة الربح]]+data11[[#This Row],[السعر للشراء]] -> 0 | G82: =data11[[#This Row],[الكمية ]]*data11[[#This Row],[سعر البيع ]] -> 0
A83: 77 | E83: =data11[[#This Row],[السعر للشراء]]/$E$3 -> 0 | F83: =data11[[#This Row],[نسبة الربح]]+data11[[#This Row],[السعر للشراء]] -> 0 | G83: =data11[[#This Row],[الكمية ]]*data11[[#This Row],[سعر البيع ]] -> 0
A84: 78 | E84: =data11[[#This Row],[السعر للشراء]]/$E$3 -> 0 | F84: =data11[[#This Row],[نسبة الربح]]+data11[[#This Row],[السعر للشراء]] -> 0 | G84: =data11[[#This Row],[الكمية ]]*data11[[#This Row],[سعر البيع ]] -> 0
A85: 79 | E85: =data11[[#This Row],[السعر للشراء]]/$E$3 -> 0 | F85: =data11[[#This Row],[نسبة الربح]]+data11[[#This Row],[السعر للشراء]] -> 0 | G85: =data11[[#This Row],[الكمية ]]*data11[[#This Row],[سعر البيع ]] -> 0
A86: 80 | E86: =data11[[#This Row],[السعر للشراء]]/$E$3 -> 0 | F86: =data11[[#This Row],[نسبة الربح]]+data11[[#This Row],[السعر للشراء]] -> 0 | G86: =data11[[#This Row],[الكمية ]]*data11[[#This Row],[سعر البيع ]] -> 0
A87: 81 | E87: =data11[[#This Row],[السعر للشراء]]/$E$3 -> 0 | F87: =data11[[#This Row],[نسبة الربح]]+data11[[#This Row],[السعر للشراء]] -> 0 | G87: =data11[[#This Row],[الكمية ]]*data11[[#This Row],[سعر البيع ]] -> 0
A88: 82 | E88: =data11[[#This Row],[السعر للشراء]]/$E$3 -> 0 | F88: =data11[[#This Row],[نسبة الربح]]+data11[[#This Row],[السعر للشراء]] -> 0 | G88: =data11[[#This Row],[الكمية ]]*data11[[#This Row],[سعر البيع ]] -> 0
A89: 83 | E89: =data11[[#This Row],[السعر للشراء]]/$E$3 -> 0 | F89: =data11[[#This Row],[نسبة الربح]]+data11[[#This Row],[السعر للشراء]] -> 0 | G89: =data11[[#This Row],[الكمية ]]*data11[[#This Row],[سعر البيع ]] -> 0
A90: 84 | E90: =data11[[#This Row],[السعر للشراء]]/$E$3 -> 0 | F90: =data11[[#This Row],[نسبة الربح]]+data11[[#This Row],[السعر للشراء]] -> 0 | G90: =data11[[#This Row],[الكمية ]]*data11[[#This Row],[سعر البيع ]] -> 0
A91: 85 | E91: =data11[[#This Row],[السعر للشراء]]/$E$3 -> 0 | F91: =data11[[#This Row],[نسبة الربح]]+data11[[#This Row],[السعر للشراء]] -> 0 | G91: =data11[[#This Row],[الكمية ]]*data11[[#This Row],[سعر البيع ]] -> 0
A92: 86 | E92: =data11[[#This Row],[السعر للشراء]]/$E$3 -> 0 | F92: =data11[[#This Row],[نسبة الربح]]+data11[[#This Row],[السعر للشراء]] -> 0 | G92: =data11[[#This Row],[الكمية ]]*data11[[#This Row],[سعر البيع ]] -> 0
A93: 87 | E93: =data11[[#This Row],[السعر للشراء]]/$E$3 -> 0 | F93: =data11[[#This Row],[نسبة الربح]]+data11[[#This Row],[السعر للشراء]] -> 0 | G93: =data11[[#This Row],[الكمية ]]*data11[[#This Row],[سعر البيع ]] -> 0
A94: 88 | E94: =data11[[#This Row],[السعر للشراء]]/$E$3 -> 0 | F94: =data11[[#This Row],[نسبة الربح]]+data11[[#This Row],[السعر للشراء]] -> 0 | G94: =data11[[#This Row],[الكمية ]]*data11[[#This Row],[سعر البيع ]] -> 0
A95: 89 | E95: =data11[[#This Row],[السعر للشراء]]/$E$3 -> 0 | F95: =data11[[#This Row],[نسبة الربح]]+data11[[#This Row],[السعر للشراء]] -> 0 | G95: =data11[[#This Row],[الكمية ]]*data11[[#This Row],[سعر البيع ]] -> 0
A96: 90 | E96: =data11[[#This Row],[السعر للشراء]]/$E$3 -> 0 | F96: =data11[[#This Row],[نسبة الربح]]+data11[[#This Row],[السعر للشراء]] -> 0 | G96: =data11[[#This Row],[الكمية ]]*data11[[#This Row],[سعر البيع ]] -> 0
A97: 91 | E97: =data11[[#This Row],[السعر للشراء]]/$E$3 -> 0 | F97: =data11[[#This Row],[نسبة الربح]]+data11[[#This Row],[السعر للشراء]] -> 0 | G97: =data11[[#This Row],[الكمية ]]*data11[[#This Row],[سعر البيع ]] -> 0
A98: 92 | E98: =data11[[#This Row],[السعر للشراء]]/$E$3 -> 0 | F98: =data11[[#This Row],[نسبة الربح]]+data11[[#This Row],[السعر للشراء]] -> 0 | G98: =data11[[#This Row],[الكمية ]]*data11[[#This Row],[سعر البيع ]] -> 0
A99: 93 | E99: =data11[[#This Row],[السعر للشراء]]/$E$3 -> 0 | F99: =data11[[#This Row],[نسبة الربح]]+data11[[#This Row],[السعر للشراء]] -> 0 | G99: =data11[[#This Row],[الكمية ]]*data11[[#This Row],[سعر البيع ]] -> 0
A100: 94 | E100: =data11[[#This Row],[السعر للشراء]]/$E$3 -> 0 | F100: =data11[[#This Row],[نسبة الربح]]+data11[[#This Row],[السعر للشراء]] -> 0 | G100: =data11[[#This Row],[الكمية ]]*data11[[#This Row],[سعر البيع ]] -> 0
A101: 95 | E101: =data11[[#This Row],[السعر للشراء]]/$E$3 -> 0 | F101: =data11[[#This Row],[نسبة الربح]]+data11[[#This Row],[السعر للشراء]] -> 0 | G101: =data11[[#This Row],[الكمية ]]*data11[[#This Row],[سعر البيع ]] -> 0
A102: 96 | E102: =data11[[#This Row],[السعر للشراء]]/$E$3 -> 0 | F102: =data11[[#This Row],[نسبة الربح]]+data11[[#This Row],[السعر للشراء]] -> 0 | G102: =data11[[#This Row],[الكمية ]]*data11[[#This Row],[سعر البيع ]] -> 0
A103: 97 | E103: =data11[[#This Row],[السعر للشراء]]/$E$3 -> 0 | F103: =data11[[#This Row],[نسبة الربح]]+data11[[#This Row],[السعر للشراء]] -> 0 | G103: =data11[[#This Row],[الكمية ]]*data11[[#This Row],[سعر البيع ]] -> 0
A104: 98 | E104: =data11[[#This Row],[السعر للشراء]]/$E$3 -> 0 | F104: =data11[[#This Row],[نسبة الربح]]+data11[[#This Row],[السعر للشراء]] -> 0 | G104: =data11[[#This Row],[الكمية ]]*data11[[#This Row],[سعر البيع ]] -> 0
A105: 99 | E105: =data11[[#This Row],[السعر للشراء]]/$E$3 -> 0 | F105: =data11[[#This Row],[نسبة الربح]]+data11[[#This Row],[السعر للشراء]] -> 0 | G105: =data11[[#This Row],[الكمية ]]*data11[[#This Row],[سعر البيع ]] -> 0
A106: 100 | E106: =data11[[#This Row],[السعر للشراء]]/$E$3 -> 0 | F106: =data11[[#This Row],[نسبة الربح]]+data11[[#This Row],[السعر للشراء]] -> 0 | G106: =data11[[#This Row],[الكمية ]]*data11[[#This Row],[سعر البيع ]] -> 0
A107: 101 | E107: =data11[[#This Row],[السعر للشراء]]/$E$3 -> 0 | F107: =data11[[#This Row],[نسبة الربح]]+data11[[#This Row],[السعر للشراء]] -> 0 | G107: =data11[[#This Row],[الكمية ]]*data11[[#This Row],[سعر البيع ]] -> 0
A108: 102 | E108: =data11[[#This Row],[السعر للشراء]]/$E$3 -> 0 | F108: =data11[[#This Row],[نسبة الربح]]+data11[[#This Row],[السعر للشراء]] -> 0 | G108: =data11[[#This Row],[الكمية ]]*data11[[#This Row],[سعر البيع ]] -> 0
A109: 103 | E109: =data11[[#This Row],[السعر للشراء]]/$E$3 -> 0 | F109: =data11[[#This Row],[نسبة الربح]]+data11[[#This Row],[السعر للشراء]] -> 0 | G109: =data11[[#This Row],[الكمية ]]*data11[[#This Row],[سعر البيع ]] -> 0
A110: 104 | E110: =data11[[#This Row],[السعر للشراء]]/$E$3 -> 0 | F110: =data11[[#This Row],[نسبة الربح]]+data11[[#This Row],[السعر للشراء]] -> 0 | G110: =data11[[#This Row],[الكمية ]]*data11[[#This Row],[سعر البيع ]] -> 0
A111: 105 | E111: =data11[[#This Row],[السعر للشراء]]/$E$3 -> 0 | F111: =data11[[#This Row],[نسبة الربح]]+data11[[#This Row],[السعر للشراء]] -> 0 | G111: =data11[[#This Row],[الكمية ]]*data11[[#This Row],[سعر البيع ]] -> 0
A112: 106 | E112: =data11[[#This Row],[السعر للشراء]]/$E$3 -> 0 | F112: =data11[[#This Row],[نسبة الربح]]+data11[[#This Row],[السعر للشراء]] -> 0 | G112: =data11[[#This Row],[الكمية ]]*data11[[#This Row],[سعر البيع ]] -> 0
A113: 107 | E113: =data11[[#This Row],[السعر للشراء]]/$E$3 -> 0 | F113: =data11[[#This Row],[نسبة الربح]]+data11[[#This Row],[السعر للشراء]] -> 0 | G113: =data11[[#This Row],[الكمية ]]*data11[[#This Row],[سعر البيع ]] -> 0
A114: 108 | E114: =data11[[#This Row],[السعر للشراء]]/$E$3 -> 0 | F114: =data11[[#This Row],[نسبة الربح]]+data11[[#This Row],[السعر للشراء]] -> 0 | G114: =data11[[#This Row],[الكمية ]]*data11[[#This Row],[سعر البيع ]] -> 0
A115: 109 | E115: =data11[[#This Row],[السعر للشراء]]/$E$3 -> 0 | F115: =data11[[#This Row],[نسبة الربح]]+data11[[#This Row],[السعر للشراء]] -> 0 | G115: =data11[[#This Row],[الكمية ]]*data11[[#This Row],[سعر البيع ]] -> 0
A116: 110 | E116: =data11[[#This Row],[السعر للشراء]]/$E$3 -> 0 | F116: =data11[[#This Row],[نسبة الربح]]+data11[[#This Row],[السعر للشراء]] -> 0 | G116: =data11[[#This Row],[الكمية ]]*data11[[#This Row],[سعر البيع ]] -> 0
A117: 111 | E117: =data11[[#This Row],[السعر للشراء]]/$E$3 -> 0 | F117: =data11[[#This Row],[نسبة الربح]]+data11[[#This Row],[السعر للشراء]] -> 0 | G117: =data11[[#This Row],[الكمية ]]*data11[[#This Row],[سعر البيع ]] -> 0
A118: 112 | E118: =data11[[#This Row],[السعر للشراء]]/$E$3 -> 0 | F118: =data11[[#This Row],[نسبة الربح]]+data11[[#This Row],[السعر للشراء]] -> 0 | G118: =data11[[#This Row],[الكمية ]]*data11[[#This Row],[سعر البيع ]] -> 0
A119: 113 | E119: =data11[[#This Row],[السعر للشراء]]/$E$3 -> 0 | F119: =data11[[#This Row],[نسبة الربح]]+data11[[#This Row],[السعر للشراء]] -> 0 | G119: =data11[[#This Row],[الكمية ]]*data11[[#This Row],[سعر البيع ]] -> 0
A120: 114 | E120: =data11[[#This Row],[السعر للشراء]]/$E$3 -> 0 | F120: =data11[[#This Row],[نسبة الربح]]+data11[[#This Row],[السعر للشراء]] -> 0 | G120: =data11[[#This Row],[الكمية ]]*data11[[#This Row],[سعر البيع ]] -> 0
A121: 115 | E121: =data11[[#This Row],[السعر للشراء]]/$E$3 -> 0 | F121: =data11[[#This Row],[نسبة الربح]]+data11[[#This Row],[السعر للشراء]] -> 0 | G121: =data11[[#This Row],[الكمية ]]*data11[[#This Row],[سعر البيع ]] -> 0
A122: 116 | E122: =data11[[#This Row],[السعر للشراء]]/$E$3 -> 0 | F122: =data11[[#This Row],[نسبة الربح]]+data11[[#This Row],[السعر للشراء]] -> 0 | G122: =data11[[#This Row],[الكمية ]]*data11[[#This Row],[سعر البيع ]] -> 0
A123: 117 | E123: =data11[[#This Row],[السعر للشراء]]/$E$3 -> 0 | F123: =data11[[#This Row],[نسبة الربح]]+data11[[#This Row],[السعر للشراء]] -> 0 | G123: =data11[[#This Row],[الكمية ]]*data11[[#This Row],[سعر البيع ]] -> 0
A124: 118 | E124: =data11[[#This Row],[السعر للشراء]]/$E$3 -> 0 | F124: =data11[[#This Row],[نسبة الربح]]+data11[[#This Row],[السعر للشراء]] -> 0 | G124: =data11[[#This Row],[الكمية ]]*data11[[#This Row],[سعر البيع ]] -> 0
A125: 119 | E125: =data11[[#This Row],[السعر للشراء]]/$E$3 -> 0 | F125: =data11[[#This Row],[نسبة الربح]]+data11[[#This Row],[السعر للشراء]] -> 0 | G125: =data11[[#This Row],[الكمية ]]*data11[[#This Row],[سعر البيع ]] -> 0
A126: 120 | E126: =data11[[#This Row],[السعر للشراء]]/$E$3 -> 0 | F126: =data11[[#This Row],[نسبة الربح]]+data11[[#This Row],[السعر للشراء]] -> 0 | G126: =data11[[#This Row],[الكمية ]]*data11[[#This Row],[سعر البيع ]] -> 0
A127: 121 | E127: =data11[[#This Row],[السعر للشراء]]/$E$3 -> 0 | F127: =data11[[#This Row],[نسبة الربح]]+data11[[#This Row],[السعر للشراء]] -> 0 | G127: =data11[[#This Row],[الكمية ]]*data11[[#This Row],[سعر البيع ]] -> 0
A128: 122 | E128: =data11[[#This Row],[السعر للشراء]]/$E$3 -> 0 | F128: =data11[[#This Row],[نسبة الربح]]+data11[[#This Row],[السعر للشراء]] -> 0 | G128: =data11[[#This Row],[الكمية ]]*data11[[#This Row],[سعر البيع ]] -> 0
A129: 123 | E129: =data11[[#This Row],[السعر للشراء]]/$E$3 -> 0 | F129: =data11[[#This Row],[نسبة الربح]]+data11[[#This Row],[السعر للشراء]] -> 0 | G129: =data11[[#This Row],[الكمية ]]*data11[[#This Row],[سعر البيع ]] -> 0
A130: 124 | E130: =data11[[#This Row],[السعر للشراء]]/$E$3 -> 0 | F130: =data11[[#This Row],[نسبة الربح]]+data11[[#This Row],[السعر للشراء]] -> 0 | G130: =data11[[#This Row],[الكمية ]]*data11[[#This Row],[سعر البيع ]] -> 0
A131: 125 | E131: =data11[[#This Row],[السعر للشراء]]/$E$3 -> 0 | F131: =data11[[#This Row],[نسبة الربح]]+data11[[#This Row],[السعر للشراء]] -> 0 | G131: =data11[[#This Row],[الكمية ]]*data11[[#This Row],[سعر البيع ]] -> 0
A132: 126 | E132: =data11[[#This Row],[السعر للشراء]]/$E$3 -> 0 | F132: =data11[[#This Row],[نسبة الربح]]+data11[[#This Row],[السعر للشراء]] -> 0 | G132: =data11[[#This Row],[الكمية ]]*data11[[#This Row],[سعر البيع ]] -> 0
A133: 127 | E133: =data11[[#This Row],[السعر للشراء]]/$E$3 -> 0 | F133: =data11[[#This Row],[نسبة الربح]]+data11[[#This Row],[السعر للشراء]] -> 0 | G133: =data11[[#This Row],[الكمية ]]*data11[[#This Row],[سعر البيع ]] -> 0
A134: 128 | E134: =data11[[#This Row],[السعر للشراء]]/$E$3 -> 0 | F134: =data11[[#This Row],[نسبة الربح]]+data11[[#This Row],[السعر للشراء]] -> 0 | G134: =data11[[#This Row],[الكمية ]]*data11[[#This Row],[سعر البيع ]] -> 0
A135: 129 | E135: =data11[[#This Row],[السعر للشراء]]/$E$3 -> 0 | F135: =data11[[#This Row],[نسبة الربح]]+data11[[#This Row],[السعر للشراء]] -> 0 | G135: =data11[[#This Row],[الكمية ]]*data11[[#This Row],[سعر البيع ]] -> 0
A136: 130 | E136: =data11[[#This Row],[السعر للشراء]]/$E$3 -> 0 | F136: =data11[[#This Row],[نسبة الربح]]+data11[[#This Row],[السعر للشراء]] -> 0 | G136: =data11[[#This Row],[الكمية ]]*data11[[#This Row],[سعر البيع ]] -> 0
A137: 131 | E137: =data11[[#This Row],[السعر للشراء]]/$E$3 -> 0 | F137: =data11[[#This Row],[نسبة الربح]]+data11[[#This Row],[السعر للشراء]] -> 0 | G137: =data11[[#This Row],[الكمية ]]*data11[[#This Row],[سعر البيع ]] -> 0
A138: 132 | E138: =data11[[#This Row],[السعر للشراء]]/$E$3 -> 0 | F138: =data11[[#This Row],[نسبة الربح]]+data11[[#This Row],[السعر للشراء]] -> 0 | G138: =data11[[#This Row],[الكمية ]]*data11[[#This Row],[سعر البيع ]] -> 0
A139: 133 | E139: =data11[[#This Row],[السعر للشراء]]/$E$3 -> 0 | F139: =data11[[#This Row],[نسبة الربح]]+data11[[#This Row],[السعر للشراء]] -> 0 | G139: =data11[[#This Row],[الكمية ]]*data11[[#This Row],[سعر البيع ]] -> 0
A140: 134 | E140: =data11[[#This Row],[السعر للشراء]]/$E$3 -> 0 | F140: =data11[[#This Row],[نسبة الربح]]+data11[[#This Row],[السعر للشراء]] -> 0 | G140: =data11[[#This Row],[الكمية ]]*data11[[#This Row],[سعر البيع ]] -> 0
A141: 135 | E141: =data11[[#This Row],[السعر للشراء]]/$E$3 -> 0 | F141: =data11[[#This Row],[نسبة الربح]]+data11[[#This Row],[السعر للشراء]] -> 0 | G141: =data11[[#This Row],[الكمية ]]*data11[[#This Row],[سعر البيع ]] -> 0
A142: 136 | E142: =data11[[#This Row],[السعر للشراء]]/$E$3 -> 0 | F142: =data11[[#This Row],[نسبة الربح]]+data11[[#This Row],[السعر للشراء]] -> 0 | G142: =data11[[#This Row],[الكمية ]]*data11[[#This Row],[سعر البيع ]] -> 0
A143: 137 | E143: =data11[[#This Row],[السعر للشراء]]/$E$3 -> 0 | F143: =data11[[#This Row],[نسبة الربح]]+data11[[#This Row],[السعر للشراء]] -> 0 | G143: =data11[[#This Row],[الكمية ]]*data11[[#This Row],[سعر البيع ]] -> 0
A144: 138 | E144: =data11[[#This Row],[السعر للشراء]]/$E$3 -> 0 | F144: =data11[[#This Row],[نسبة الربح]]+data11[[#This Row],[السعر للشراء]] -> 0 | G144: =data11[[#This Row],[الكمية ]]*data11[[#This Row],[سعر البيع ]] -> 0
A145: 139 | E145: =data11[[#This Row],[السعر للشراء]]/$E$3 -> 0 | F145: =data11[[#This Row],[نسبة الربح]]+data11[[#This Row],[السعر للشراء]] -> 0 | G145: =data11[[#This Row],[الكمية ]]*data11[[#This Row],[سعر البيع ]] -> 0
A146: 140 | E146: =data11[[#This Row],[السعر للشراء]]/$E$3 -> 0 | F146: =data11[[#This Row],[نسبة الربح]]+data11[[#This Row],[السعر للشراء]] -> 0 | G146: =data11[[#This Row],[الكمية ]]*data11[[#This Row],[سعر البيع ]] -> 0
A147: 141 | E147: =data11[[#This Row],[السعر للشراء]]/$E$3 -> 0 | F147: =data11[[#This Row],[نسبة الربح]]+data11[[#This Row],[السعر للشراء]] -> 0 | G147: =data11[[#This Row],[الكمية ]]*data11[[#This Row],[سعر البيع ]] -> 0
A148: 142 | E148: =data11[[#This Row],[السعر للشراء]]/$E$3 -> 0 | F148: =data11[[#This Row],[نسبة الربح]]+data11[[#This Row],[السعر للشراء]] -> 0 | G148: =data11[[#This Row],[الكمية ]]*data11[[#This Row],[سعر البيع ]] -> 0
A149: 143 | E149: =data11[[#This Row],[السعر للشراء]]/$E$3 -> 0 | F149: =data11[[#This Row],[نسبة الربح]]+data11[[#This Row],[السعر للشراء]] -> 0 | G149: =data11[[#This Row],[الكمية ]]*data11[[#This Row],[سعر البيع ]] -> 0
A150: 144 | E150: =data11[[#This Row],[السعر للشراء]]/$E$3 -> 0 | F150: =data11[[#This Row],[نسبة الربح]]+data11[[#This Row],[السعر للشراء]] -> 0 | G150: =data11[[#This Row],[الكمية ]]*data11[[#This Row],[سعر البيع ]] -> 0
A151: 145 | E151: =data11[[#This Row],[السعر للشراء]]/$E$3 -> 0 | F151: =data11[[#This Row],[نسبة الربح]]+data11[[#This Row],[السعر للشراء]] -> 0 | G151: =data11[[#This Row],[الكمية ]]*data11[[#This Row],[سعر البيع ]] -> 0
A152: 146 | E152: =data11[[#This Row],[السعر للشراء]]/$E$3 -> 0 | F152: =data11[[#This Row],[نسبة الربح]]+data11[[#This Row],[السعر للشراء]] -> 0 | G152: =data11[[#This Row],[الكمية ]]*data11[[#This Row],[سعر البيع ]] -> 0
A153: 147 | E153: =data11[[#This Row],[السعر للشراء]]/$E$3 -> 0 | F153: =data11[[#This Row],[نسبة الربح]]+data11[[#This Row],[السعر للشراء]] -> 0 | G153: =data11[[#This Row],[الكمية ]]*data11[[#This Row],[سعر البيع ]] -> 0
A154: 148 | E154: =data11[[#This Row],[السعر للشراء]]/$E$3 -> 0 | F154: =data11[[#This Row],[نسبة الربح]]+data11[[#This Row],[السعر للشراء]] -> 0 | G154: =data11[[#This Row],[الكمية ]]*data11[[#This Row],[سعر البيع ]] -> 0
A155: 149 | E155: =data11[[#This Row],[السعر للشراء]]/$E$3 -> 0 | F155: =data11[[#This Row],[نسبة الربح]]+data11[[#This Row],[السعر للشراء]] -> 0 | G155: =data11[[#This Row],[الكمية ]]*data11[[#This Row],[سعر البيع ]] -> 0
A156: 150 | E156: =data11[[#This Row],[السعر للشراء]]/$E$3 -> 0 | F156: =data11[[#This Row],[نسبة الربح]]+data11[[#This Row],[السعر للشراء]] -> 0 | G156: =data11[[#This Row],[الكمية ]]*data11[[#This Row],[سعر البيع ]] -> 0
A157: 151 | E157: =data11[[#This Row],[السعر للشراء]]/$E$3 -> 0 | F157: =data11[[#This Row],[نسبة الربح]]+data11[[#This Row],[السعر للشراء]] -> 0 | G157: =data11[[#This Row],[الكمية ]]*data11[[#This Row],[سعر البيع ]] -> 0
A158: 152 | E158: =data11[[#This Row],[السعر للشراء]]/$E$3 -> 0 | F158: =data11[[#This Row],[نسبة الربح]]+data11[[#This Row],[السعر للشراء]] -> 0 | G158: =data11[[#This Row],[الكمية ]]*data11[[#This Row],[سعر البيع ]] -> 0
A159: 153 | E159: =data11[[#This Row],[السعر للشراء]]/$E$3 -> 0 | F159: =data11[[#This Row],[نسبة الربح]]+data11[[#This Row],[السعر للشراء]] -> 0 | G159: =data11[[#This Row],[الكمية ]]*data11[[#This Row],[سعر البيع ]] -> 0
A160: 154 | E160: =data11[[#This Row],[السعر للشراء]]/$E$3 -> 0 | F160: =data11[[#This Row],[نسبة الربح]]+data11[[#This Row],[السعر للشراء]] -> 0 | G160: =data11[[#This Row],[الكمية ]]*data11[[#This Row],[سعر البيع ]] -> 0
A161: 155 | E161: =data11[[#This Row],[السعر للشراء]]/$E$3 -> 0 | F161: =data11[[#This Row],[نسبة الربح]]+data11[[#This Row],[السعر للشراء]] -> 0 | G161: =data11[[#This Row],[الكمية ]]*data11[[#This Row],[سعر البيع ]] -> 0
A162: 156 | E162: =data11[[#This Row],[السعر للشراء]]/$E$3 -> 0 | F162: =data11[[#This Row],[نسبة الربح]]+data11[[#This Row],[السعر للشراء]] -> 0 | G162: =data11[[#This Row],[الكمية ]]*data11[[#This Row],[سعر البيع ]] -> 0
A163: 157 | E163: =data11[[#This Row],[السعر للشراء]]/$E$3 -> 0 | F163: =data11[[#This Row],[نسبة الربح]]+data11[[#This Row],[السعر للشراء]] -> 0 | G163: =data11[[#This Row],[الكمية ]]*data11[[#This Row],[سعر البيع ]] -> 0
A164: 158 | E164: =data11[[#This Row],[السعر للشراء]]/$E$3 -> 0 | F164: =data11[[#This Row],[نسبة الربح]]+data11[[#This Row],[السعر للشراء]] -> 0 | G164: =data11[[#This Row],[الكمية ]]*data11[[#This Row],[سعر البيع ]] -> 0
A165: 159 | E165: =data11[[#This Row],[السعر للشراء]]/$E$3 -> 0 | F165: =data11[[#This Row],[نسبة الربح]]+data11[[#This Row],[السعر للشراء]] -> 0 | G165: =data11[[#This Row],[الكمية ]]*data11[[#This Row],[سعر البيع ]] -> 0
A166: 160 | E166: =data11[[#This Row],[السعر للشراء]]/$E$3 -> 0 | F166: =data11[[#This Row],[نسبة الربح]]+data11[[#This Row],[السعر للشراء]] -> 0 | G166: =data11[[#This Row],[الكمية ]]*data11[[#This Row],[سعر البيع ]] -> 0
A167: 161 | E167: =data11[[#This Row],[السعر للشراء]]/$E$3 -> 0 | F167: =data11[[#This Row],[نسبة الربح]]+data11[[#This Row],[السعر للشراء]] -> 0 | G167: =data11[[#This Row],[الكمية ]]*data11[[#This Row],[سعر البيع ]] -> 0
A168: 162 | E168: =data11[[#This Row],[السعر للشراء]]/$E$3 -> 0 | F168: =data11[[#This Row],[نسبة الربح]]+data11[[#This Row],[السعر للشراء]] -> 0 | G168: =data11[[#This Row],[الكمية ]]*data11[[#This Row],[سعر البيع ]] -> 0
A169: 163 | E169: =data11[[#This Row],[السعر للشراء]]/$E$3 -> 0 | F169: =data11[[#This Row],[نسبة الربح]]+data11[[#This Row],[السعر للشراء]] -> 0 | G169: =data11[[#This Row],[الكمية ]]*data11[[#This Row],[سعر البيع ]] -> 0
A170: 164 | E170: =data11[[#This Row],[السعر للشراء]]/$E$3 -> 0 | F170: =data11[[#This Row],[نسبة الربح]]+data11[[#This Row],[السعر للشراء]] -> 0 | G170: =data11[[#This Row],[الكمية ]]*data11[[#This Row],[سعر البيع ]] -> 0
A171: 165 | E171: =data11[[#This Row],[السعر للشراء]]/$E$3 -> 0 | F171: =data11[[#This Row],[نسبة الربح]]+data11[[#This Row],[السعر للشراء]] -> 0 | G171: =data11[[#This Row],[الكمية ]]*data11[[#This Row],[سعر البيع ]] -> 0
A172: 166 | E172: =data11[[#This Row],[السعر للشراء]]/$E$3 -> 0 | F172: =data11[[#This Row],[نسبة الربح]]+data11[[#This Row],[السعر للشراء]] -> 0 | G172: =data11[[#This Row],[الكمية ]]*data11[[#This Row],[سعر البيع ]] -> 0
A173: 167 | E173: =data11[[#This Row],[السعر للشراء]]/$E$3 -> 0 | F173: =data11[[#This Row],[نسبة الربح]]+data11[[#This Row],[السعر للشراء]] -> 0 | G173: =data11[[#This Row],[الكمية ]]*data11[[#This Row],[سعر البيع ]] -> 0
A174: 168 | E174: =data11[[#This Row],[السعر للشراء]]/$E$3 -> 0 | F174: =data11[[#This Row],[نسبة الربح]]+data11[[#This Row],[السعر للشراء]] -> 0 | G174: =data11[[#This Row],[الكمية ]]*data11[[#This Row],[سعر البيع ]] -> 0
A175: 169 | E175: =data11[[#This Row],[السعر للشراء]]/$E$3 -> 0 | F175: =data11[[#This Row],[نسبة الربح]]+data11[[#This Row],[السعر للشراء]] -> 0 | G175: =data11[[#This Row],[الكمية ]]*data11[[#This Row],[سعر البيع ]] -> 0
A176: 170 | E176: =data11[[#This Row],[السعر للشراء]]/$E$3 -> 0 | F176: =data11[[#This Row],[نسبة الربح]]+data11[[#This Row],[السعر للشراء]] -> 0 | G176: =data11[[#This Row],[الكمية ]]*data11[[#This Row],[سعر البيع ]] -> 0
A177: 171 | E177: =data11[[#This Row],[السعر للشراء]]/$E$3 -> 0 | F177: =data11[[#This Row],[نسبة الربح]]+data11[[#This Row],[السعر للشراء]] -> 0 | G177: =data11[[#This Row],[الكمية ]]*data11[[#This Row],[سعر البيع ]] -> 0
A178: 172 | E178: =data11[[#This Row],[السعر للشراء]]/$E$3 -> 0 | F178: =data11[[#This Row],[نسبة الربح]]+data11[[#This Row],[السعر للشراء]] -> 0 | G178: =data11[[#This Row],[الكمية ]]*data11[[#This Row],[سعر البيع ]] -> 0
A179: 173 | E179: =data11[[#This Row],[السعر للشراء]]/$E$3 -> 0 | F179: =data11[[#This Row],[نسبة الربح]]+data11[[#This Row],[السعر للشراء]] -> 0 | G179: =data11[[#This Row],[الكمية ]]*data11[[#This Row],[سعر البيع ]] -> 0
A180: 174 | E180: =data11[[#This Row],[السعر للشراء]]/$E$3 -> 0 | F180: =data11[[#This Row],[نسبة الربح]]+data11[[#This Row],[السعر للشراء]] -> 0 | G180: =data11[[#This Row],[الكمية ]]*data11[[#This Row],[سعر البيع ]] -> 0
A181: 175 | E181: =data11[[#This Row],[السعر للشراء]]/$E$3 -> 0 | F181: =data11[[#This Row],[نسبة الربح]]+data11[[#This Row],[السعر للشراء]] -> 0 | G181: =data11[[#This Row],[الكمية ]]*data11[[#This Row],[سعر البيع ]] -> 0
A182: 176 | E182: =data11[[#This Row],[السعر للشراء]]/$E$3 -> 0 | F182: =data11[[#This Row],[نسبة الربح]]+data11[[#This Row],[السعر للشراء]] -> 0 | G182: =data11[[#This Row],[الكمية ]]*data11[[#This Row],[سعر البيع ]] -> 0
A183: 177 | E183: =data11[[#This Row],[السعر للشراء]]/$E$3 -> 0 | F183: =data11[[#This Row],[نسبة الربح]]+data11[[#This Row],[السعر للشراء]] -> 0 | G183: =data11[[#This Row],[الكمية ]]*data11[[#This Row],[سعر البيع ]] -> 0
A184: 178 | E184: =data11[[#This Row],[السعر للشراء]]/$E$3 -> 0 | F184: =data11[[#This Row],[نسبة الربح]]+data11[[#This Row],[السعر للشراء]] -> 0 | G184: =data11[[#This Row],[الكمية ]]*data11[[#This Row],[سعر البيع ]] -> 0
A185: 179 | E185: =data11[[#This Row],[السعر للشراء]]/$E$3 -> 0 | F185: =data11[[#This Row],[نسبة الربح]]+data11[[#This Row],[السعر للشراء]] -> 0 | G185: =data11[[#This Row],[الكمية ]]*data11[[#This Row],[سعر البيع ]] -> 0
A186: 180 | E186: =data11[[#This Row],[السعر للشراء]]/$E$3 -> 0 | F186: =data11[[#This Row],[نسبة الربح]]+data11[[#This Row],[السعر للشراء]] -> 0 | G186: =data11[[#This Row],[الكمية ]]*data11[[#This Row],[سعر البيع ]] -> 0
A187: 181 | E187: =data11[[#This Row],[السعر للشراء]]/$E$3 -> 0 | F187: =data11[[#This Row],[نسبة الربح]]+data11[[#This Row],[السعر للشراء]] -> 0 | G187: =data11[[#This Row],[الكمية ]]*data11[[#This Row],[سعر البيع ]] -> 0
A188: 182 | E188: =data11[[#This Row],[السعر للشراء]]/$E$3 -> 0 | F188: =data11[[#This Row],[نسبة الربح]]+data11[[#This Row],[السعر للشراء]] -> 0 | G188: =data11[[#This Row],[الكمية ]]*data11[[#This Row],[سعر البيع ]] -> 0
A189: 183 | E189: =data11[[#This Row],[السعر للشراء]]/$E$3 -> 0 | F189: =data11[[#This Row],[نسبة الربح]]+data11[[#This Row],[السعر للشراء]] -> 0 | G189: =data11[[#This Row],[الكمية ]]*data11[[#This Row],[سعر البيع ]] -> 0
A190: 184 | E190: =data11[[#This Row],[السعر للشراء]]/$E$3 -> 0 | F190: =data11[[#This Row],[نسبة الربح]]+data11[[#This Row],[السعر للشراء]] -> 0 | G190: =data11[[#This Row],[الكمية ]]*data11[[#This Row],[سعر البيع ]] -> 0
A191: 185 | E191: =data11[[#This Row],[السعر للشراء]]/$E$3 -> 0 | F191: =data11[[#This Row],[نسبة الربح]]+data11[[#This Row],[السعر للشراء]] -> 0 | G191: =data11[[#This Row],[الكمية ]]*data11[[#This Row],[سعر البيع ]] -> 0
A192: 186 | E192: =data11[[#This Row],[السعر للشراء]]/$E$3 -> 0 | F192: =data11[[#This Row],[نسبة الربح]]+data11[[#This Row],[السعر للشراء]] -> 0 | G192: =data11[[#This Row],[الكمية ]]*data11[[#This Row],[سعر البيع ]] -> 0
A193: 187 | E193: =data11[[#This Row],[السعر للشراء]]/$E$3 -> 0 | F193: =data11[[#This Row],[نسبة الربح]]+data11[[#This Row],[السعر للشراء]] -> 0 | G193: =data11[[#This Row],[الكمية ]]*data11[[#This Row],[سعر البيع ]] -> 0
A194: 188 | E194: =data11[[#This Row],[السعر للشراء]]/$E$3 -> 0 | F194: =data11[[#This Row],[نسبة الربح]]+data11[[#This Row],[السعر للشراء]] -> 0 | G194: =data11[[#This Row],[الكمية ]]*data11[[#This Row],[سعر البيع ]] -> 0
A195: 189 | E195: =data11[[#This Row],[السعر للشراء]]/$E$3 -> 0 | F195: =data11[[#This Row],[نسبة الربح]]+data11[[#This Row],[السعر للشراء]] -> 0 | G195: =data11[[#This Row],[الكمية ]]*data11[[#This Row],[سعر البيع ]] -> 0
A196: 190 | E196: =data11[[#This Row],[السعر للشراء]]/$E$3 -> 0 | F196: =data11[[#This Row],[نسبة الربح]]+data11[[#This Row],[السعر للشراء]] -> 0 | G196: =data11[[#This Row],[الكمية ]]*data11[[#This Row],[سعر البيع ]] -> 0
A197: 191 | E197: =data11[[#This Row],[السعر للشراء]]/$E$3 -> 0 | F197: =data11[[#This Row],[نسبة الربح]]+data11[[#This Row],[السعر للشراء]] -> 0 | G197: =data11[[#This Row],[الكمية ]]*data11[[#This Row],[سعر البيع ]] -> 0
A198: 192 | E198: =data11[[#This Row],[السعر للشراء]]/$E$3 -> 0 | F198: =data11[[#This Row],[نسبة الربح]]+data11[[#This Row],[السعر للشراء]] -> 0 | G198: =data11[[#This Row],[الكمية ]]*data11[[#This Row],[سعر البيع ]] -> 0
A199: 193 | E199: =data11[[#This Row],[السعر للشراء]]/$E$3 -> 0 | F199: =data11[[#This Row],[نسبة الربح]]+data11[[#This Row],[السعر للشراء]] -> 0 | G199: =data11[[#This Row],[الكمية ]]*data11[[#This Row],[سعر البيع ]] -> 0
A200: 194 | E200: =data11[[#This Row],[السعر للشراء]]/$E$3 -> 0 | F200: =data11[[#This Row],[نسبة الربح]]+data11[[#This Row],[السعر للشراء]] -> 0 | G200: =data11[[#This Row],[الكمية ]]*data11[[#This Row],[سعر البيع ]] -> 0
A201: 195 | E201: =data11[[#This Row],[السعر للشراء]]/$E$3 -> 0 | F201: =data11[[#This Row],[نسبة الربح]]+data11[[#This Row],[السعر للشراء]] -> 0 | G201: =data11[[#This Row],[الكمية ]]*data11[[#This Row],[سعر البيع ]] -> 0
A202: 196 | E202: =data11[[#This Row],[السعر للشراء]]/$E$3 -> 0 | F202: =data11[[#This Row],[نسبة الربح]]+data11[[#This Row],[السعر للشراء]] -> 0 | G202: =data11[[#This Row],[الكمية ]]*data11[[#This Row],[سعر البيع ]] -> 0
... 15 more rows

Sheet الغرف
B11: الغرفة | C11: التكلفة
B12: نوم | C12: =نوم!D3 -> 6600

Sheet نوم
A1: حجرة نوم
C3: تكلفة الغرفة | D3: =SUM(E7:E206) -> 6600
C4: عدد الأصناف بالغرفة | D4: =COUNTA(B7:B206) -> 5
A6: م | B6: اسم الصنف | C6: الكمية | D6: السعر | E6: الجملة
A7: 1 | B7: خشب | C7: 10 | D7: =IF(ISNA(VLOOKUP($B7,data11[],5,0)),"",VLOOKUP($B7,data11[],5,0)) -> 110 | E7: =IF(B7="","",D7*C7) -> 1100
A8: 2 | B8: مون دهان | C8: 11 | D8: =IF(ISNA(VLOOKUP($B8,data11[],5,0)),"",VLOOKUP($B8,data11[],5,0)) -> 330 | E8: =IF(B8="","",D8*C8) -> 3630
A9: 3 | B9: مصنعيات نجارة | C9: 1 | D9: =IF(ISNA(VLOOKUP($B9,data11[],5,0)),"",VLOOKUP($B9,data11[],5,0)) -> 220 | E9: 220
A10: 4 | B10: مصنعيات دهان | C10: 100 | D10: =IF(ISNA(VLOOKUP($B10,data11[],5,0)),"",VLOOKUP($B10,data11[],5,0)) -> 16.5 | E10: 1650
A11: 5 | D11: =IF(ISNA(VLOOKUP($B11,data11[],5,0)),"",VLOOKUP($B11,data11[],5,0)) -> 
A12: 6 | D12: =IF(ISNA(VLOOKUP($B12,data11[],5,0)),"",VLOOKUP($B12,data11[],5,0)) -> 
A13: 7 | D13: =IF(ISNA(VLOOKUP($B13,data11[],5,0)),"",VLOOKUP($B13,data11[],5,0)) -> 
A14: 8 | D14: =IF(ISNA(VLOOKUP($B14,data11[],5,0)),"",VLOOKUP($B14,data11[],5,0)) -> 
A15: 9 | D15: =IF(ISNA(VLOOKUP($B15,data11[],5,0)),"",VLOOKUP($B15,data11[],5,0)) -> 
A16: 10 | D16: =IF(ISNA(VLOOKUP($B16,data11[],5,0)),"",VLOOKUP($B16,data11[],5,0)) -> 
A17: 11 | D17: =IF(ISNA(VLOOKUP($B17,data11[],5,0)),"",VLOOKUP($B17,data11[],5,0)) -> 
A18: 12 | D18: =IF(ISNA(VLOOKUP($B18,data11[],5,0)),"",VLOOKUP($B18,data11[],5,0)) -> 
A19: 13 | D19: =IF(ISNA(VLOOKUP($B19,data11[],5,0)),"",VLOOKUP($B19,data11[],5,0)) -> 
A20: 14 | D20: =IF(ISNA(VLOOKUP($B20,data11[],5,0)),"",VLOOKUP($B20,data11[],5,0)) -> 
A21: 15 | D21: =IF(ISNA(VLOOKUP($B21,data11[],5,0)),"",VLOOKUP($B21,data11[],5,0)) -> 
A22: 16 | D22: =IF(ISNA(VLOOKUP($B22,data11[],5,0)),"",VLOOKUP($B22,data11[],5,0)) -> 
A23: 17 | D23: =IF(ISNA(VLOOKUP($B23,data11[],5,0)),"",VLOOKUP($B23,data11[],5,0)) -> 
A24: 18 | D24: =IF(ISNA(VLOOKUP($B24,data11[],5,0)),"",VLOOKUP($B24,data11[],5,0)) -> 
A25: 19 | D25: =IF(ISNA(VLOOKUP($B25,data11[],5,0)),"",VLOOKUP($B25,data11[],5,0)) -> 
A26: 20 | D26: =IF(ISNA(VLOOKUP($B26,data11[],5,0)),"",VLOOKUP($B26,data11[],5,0)) -> 
A27: 21 | D27: =IF(ISNA(VLOOKUP($B27,data11[],5,0)),"",VLOOKUP($B27,data11[],5,0)) -> 
A28: 22 | D28: =IF(ISNA(VLOOKUP($B28,data11[],5,0)),"",VLOOKUP($B28,data11[],5,0)) -> 
A29: 23 | D29: =IF(ISNA(VLOOKUP($B29,data11[],5,0)),"",VLOOKUP($B29,data11[],5,0)) -> 
A30: 24 | D30: =IF(ISNA(VLOOKUP($B30,data11[],5,0)),"",VLOOKUP($B30,data11[],5,0)) -> 
A31: 25 | D31: =IF(ISNA(VLOOKUP($B31,data11[],5,0)),"",VLOOKUP($B31,data11[],5,0)) -> 
A32: 26 | D32: =IF(ISNA(VLOOKUP($B32,data11[],5,0)),"",VLOOKUP($B32,data11[],5,0)) -> 
A33: 27 | D33: =IF(ISNA(VLOOKUP($B33,data11[],5,0)),"",VLOOKUP($B33,data11[],5,0)) -> 
A34: 28 | D34: =IF(ISNA(VLOOKUP($B34,data11[],5,0)),"",VLOOKUP($B34,data11[],5,0)) -> 
A35: 29 | D35: =IF(ISNA(VLOOKUP($B35,data11[],5,0)),"",VLOOKUP($B35,data11[],5,0)) -> 
A36: 30 | D36: =IF(ISNA(VLOOKUP($B36,data11[],5,0)),"",VLOOKUP($B36,data11[],5,0)) -> 
A37: 31 | D37: =IF(ISNA(VLOOKUP($B37,data11[],5,0)),"",VLOOKUP($B37,data11[],5,0)) -> 
A38: 32 | D38: =IF(ISNA(VLOOKUP($B38,data11[],5,0)),"",VLOOKUP($B38,data11[],5,0)) -> 
A39: 33 | D39: =IF(ISNA(VLOOKUP($B39,data11[],5,0)),"",VLOOKUP($B39,data11[],5,0)) -> 
A40: 34 | D40: =IF(ISNA(VLOOKUP($B40,data11[],5,0)),"",VLOOKUP($B40,data11[],5,0)) -> 
A41: 35 | D41: =IF(ISNA(VLOOKUP($B41,data11[],5,0)),"",VLOOKUP($B41,data11[],5,0)) -> 
A42: 36 | D42: =IF(ISNA(VLOOKUP($B42,data11[],5,0)),"",VLOOKUP($B42,data11[],5,0)) -> 
A43: 37 | D43: =IF(ISNA(VLOOKUP($B43,data11[],5,0)),"",VLOOKUP($B43,data11[],5,0)) -> 
A44: 38 | D44: =IF(ISNA(VLOOKUP($B44,data11[],5,0)),"",VLOOKUP($B44,data11[],5,0)) -> 
A45: 39 | D45: =IF(ISNA(VLOOKUP($B45,data11[],5,0)),"",VLOOKUP($B45,data11[],5,0)) -> 
A46: 40 | D46: =IF(ISNA(VLOOKUP($B46,data11[],5,0)),"",VLOOKUP($B46,data11[],5,0)) -> 
A47: 41 | D47: =IF(ISNA(VLOOKUP($B47,data11[],5,0)),"",VLOOKUP($B47,data11[],5,0)) -> 
A48: 42 | D48: =IF(ISNA(VLOOKUP($B48,data11[],5,0)),"",VLOOKUP($B48,data11[],5,0)) -> 
A49: 43 | D49: =IF(ISNA(VLOOKUP($B49,data11[],5,0)),"",VLOOKUP($B49,data11[],5,0)) -> 
A50: 44 | D50: =IF(ISNA(VLOOKUP($B50,data11[],5,0)),"",VLOOKUP($B50,data11[],5,0)) -> 
A51: 45 | D51: =IF(ISNA(VLOOKUP($B51,data11[],5,0)),"",VLOOKUP($B51,data11[],5,0)) -> 
A52: 46 | D52: =IF(ISNA(VLOOKUP($B52,data11[],5,0)),"",VLOOKUP($B52,data11[],5,0)) -> 
A53: 47 | D53: =IF(ISNA(VLOOKUP($B53,data11[],5,0)),"",VLOOKUP($B53,data11[],5,0)) -> 
A54: 48 | D54: =IF(ISNA(VLOOKUP($B54,data11[],5,0)),"",VLOOKUP($B54,data11[],5,0)) -> 
A55: 49 | D55: =IF(ISNA(VLOOKUP($B55,data11[],5,0)),"",VLOOKUP($B55,data11[],5,0)) -> 
A56: 50 | D56: =IF(ISNA(VLOOKUP($B56,data11[],5,0)),"",VLOOKUP($B56,data11[],5,0)) -> 
A57: 51 | D57: =IF(ISNA(VLOOKUP($B57,data11[],5,0)),"",VLOOKUP($B57,data11[],5,0)) -> 
A58: 52 | D58: =IF(ISNA(VLOOKUP($B58,data11[],5,0)),"",VLOOKUP($B58,data11[],5,0)) -> 
A59: 53 | D59: =IF(ISNA(VLOOKUP($B59,data11[],5,0)),"",VLOOKUP($B59,data11[],5,0)) -> 
A60: 54 | D60: =IF(ISNA(VLOOKUP($B60,data11[],5,0)),"",VLOOKUP($B60,data11[],5,0)) -> 
A61: 55 | D61: =IF(ISNA(VLOOKUP($B61,data11[],5,0)),"",VLOOKUP($B61,data11[],5,0)) -> 
A62: 56 | D62: =IF(ISNA(VLOOKUP($B62,data11[],5,0)),"",VLOOKUP($B62,data11[],5,0)) -> 
A63: 57 | B63: ابلاكاج | D63: =IF(ISNA(VLOOKUP($B63,data11[],5,0)),"",VLOOKUP($B63,data11[],5,0)) -> 16.5 | E63: 0
A64: 58 | D64: =IF(ISNA(VLOOKUP($B64,data11[],5,0)),"",VLOOKUP($B64,data11[],5,0)) -> 
A65: 59 | D65: =IF(ISNA(VLOOKUP($B65,data11[],5,0)),"",VLOOKUP($B65,data11[],5,0)) -> 
A66: 60 | D66: =IF(ISNA(VLOOKUP($B66,data11[],5,0)),"",VLOOKUP($B66,data11[],5,0)) -> 
A67: 61 | D67: =IF(ISNA(VLOOKUP($B67,data11[],5,0)),"",VLOOKUP($B67,data11[],5,0)) -> 
A68: 62 | D68: =IF(ISNA(VLOOKUP($B68,data11[],5,0)),"",VLOOKUP($B68,data11[],5,0)) -> 
A69: 63 | D69: =IF(ISNA(VLOOKUP($B69,data11[],5,0)),"",VLOOKUP($B69,data11[],5,0)) -> 
A70: 64 | D70: =IF(ISNA(VLOOKUP($B70,data11[],5,0)),"",VLOOKUP($B70,data11[],5,0)) -> 
A71: 65 | D71: =IF(ISNA(VLOOKUP($B71,data11[],5,0)),"",VLOOKUP($B71,data11[],5,0)) -> 
A72: 66 | D72: =IF(ISNA(VLOOKUP($B72,data11[],5,0)),"",VLOOKUP($B72,data11[],5,0)) ->  | E72: =IF(B72="","",D72*C72) -> 
A73: 67 | D73: =IF(ISNA(VLOOKUP($B73,data11[],5,0)),"",VLOOKUP($B73,data11[],5,0)) -> 
A74: 68 | D74: =IF(ISNA(VLOOKUP($B74,data11[],5,0)),"",VLOOKUP($B74,data11[],5,0)) -> 
A75: 69 | D75: =IF(ISNA(VLOOKUP($B75,data11[],5,0)),"",VLOOKUP($B75,data11[],5,0)) -> 
A76: 70 | D76: =IF(ISNA(VLOOKUP($B76,data11[],5,0)),"",VLOOKUP($B76,data11[],5,0)) -> 
A77: 71 | D77: =IF(ISNA(VLOOKUP($B77,data11[],5,0)),"",VLOOKUP($B77,data11[],5,0)) -> 
A78: 72 | D78: =IF(ISNA(VLOOKUP($B78,data11[],5,0)),"",VLOOKUP($B78,data11[],5,0)) -> 
A79: 73 | D79: =IF(ISNA(VLOOKUP($B79,data11[],5,0)),"",VLOOKUP($B79,data11[],5,0)) -> 
A80: 74 | D80: =IF(ISNA(VLOOKUP($B80,data11[],5,0)),"",VLOOKUP($B80,data11[],5,0)) -> 
A81: 75 | D81: =IF(ISNA(VLOOKUP($B81,data11[],5,0)),"",VLOOKUP($B81,data11[],5,0)) -> 
A82: 76 | D82: =IF(ISNA(VLOOKUP($B82,data11[],5,0)),"",VLOOKUP($B82,data11[],5,0)) -> 
A83: 77 | D83: =IF(ISNA(VLOOKUP($B83,data11[],5,0)),"",VLOOKUP($B83,data11[],5,0)) -> 
A84: 78 | D84: =IF(ISNA(VLOOKUP($B84,data11[],5,0)),"",VLOOKUP($B84,data11[],5,0)) -> 
A85: 79 | D85: =IF(ISNA(VLOOKUP($B85,data11[],5,0)),"",VLOOKUP($B85,data11[],5,0)) -> 
A86: 80 | D86: =IF(ISNA(VLOOKUP($B86,data11[],5,0)),"",VLOOKUP($B86,data11[],5,0)) -> 
A87: 81 | D87: =IF(ISNA(VLOOKUP($B87,data11[],5,0)),"",VLOOKUP($B87,data11[],5,0)) -> 
A88: 82 | D88: =IF(ISNA(VLOOKUP($B88,data11[],5,0)),"",VLOOKUP($B88,data11[],5,0)) -> 
A89: 83 | D89: =IF(ISNA(VLOOKUP($B89,data11[],5,0)),"",VLOOKUP($B89,data11[],5,0)) -> 
A90: 84 | D90: =IF(ISNA(VLOOKUP($B90,data11[],5,0)),"",VLOOKUP($B90,data11[],5,0)) -> 
A91: 85 | D91: =IF(ISNA(VLOOKUP($B91,data11[],5,0)),"",VLOOKUP($B91,data11[],5,0)) -> 
A92: 86 | D92: =IF(ISNA(VLOOKUP($B92,data11[],5,0)),"",VLOOKUP($B92,data11[],5,0)) -> 
A93: 87 | D93: =IF(ISNA(VLOOKUP($B93,data11[],5,0)),"",VLOOKUP($B93,data11[],5,0)) -> 
A94: 88 | D94: =IF(ISNA(VLOOKUP($B94,data11[],5,0)),"",VLOOKUP($B94,data11[],5,0)) -> 
A95: 89 | D95: =IF(ISNA(VLOOKUP($B95,data11[],5,0)),"",VLOOKUP($B95,data11[],5,0)) -> 
A96: 90 | D96: =IF(ISNA(VLOOKUP($B96,data11[],5,0)),"",VLOOKUP($B96,data11[],5,0)) -> 
A97: 91 | D97: =IF(ISNA(VLOOKUP($B97,data11[],5,0)),"",VLOOKUP($B97,data11[],5,0)) -> 
A98: 92 | D98: =IF(ISNA(VLOOKUP($B98,data11[],5,0)),"",VLOOKUP($B98,data11[],5,0)) -> 
A99: 93 | D99: =IF(ISNA(VLOOKUP($B99,data11[],5,0)),"",VLOOKUP($B99,data11[],5,0)) -> 
A100: 94 | D100: =IF(ISNA(VLOOKUP($B100,data11[],5,0)),"",VLOOKUP($B100,data11[],5,0)) -> 
A101: 95 | D101: =IF(ISNA(VLOOKUP($B101,data11[],5,0)),"",VLOOKUP($B101,data11[],5,0)) -> 
A102: 96 | D102: =IF(ISNA(VLOOKUP($B102,data11[],5,0)),"",VLOOKUP($B102,data11[],5,0)) -> 
A103: 97 | D103: =IF(ISNA(VLOOKUP($B103,data11[],5,0)),"",VLOOKUP($B103,data11[],5,0)) -> 
A104: 98 | D104: =IF(ISNA(VLOOKUP($B104,data11[],5,0)),"",VLOOKUP($B104,data11[],5,0)) -> 
A105: 99 | D105: =IF(ISNA(VLOOKUP($B105,data11[],5,0)),"",VLOOKUP($B105,data11[],5,0)) -> 
A106: 100 | D106: =IF(ISNA(VLOOKUP($B106,data11[],5,0)),"",VLOOKUP($B106,data11[],5,0)) -> 
A107: 101 | D107: =IF(ISNA(VLOOKUP($B107,data11[],5,0)),"",VLOOKUP($B107,data11[],5,0)) -> 
A108: 102 | D108: =IF(ISNA(VLOOKUP($B108,data11[],5,0)),"",VLOOKUP($B108,data11[],5,0)) -> 
A109: 103 | D109: =IF(ISNA(VLOOKUP($B109,data11[],5,0)),"",VLOOKUP($B109,data11[],5,0)) -> 
A110: 104 | D110: =IF(ISNA(VLOOKUP($B110,data11[],5,0)),"",VLOOKUP($B110,data11[],5,0)) -> 
A111: 105 | D111: =IF(ISNA(VLOOKUP($B111,data11[],5,0)),"",VLOOKUP($B111,data11[],5,0)) -> 
A112: 106 | D112: =IF(ISNA(VLOOKUP($B112,data11[],5,0)),"",VLOOKUP($B112,data11[],5,0)) -> 
A113: 107 | D113: =IF(ISNA(VLOOKUP($B113,data11[],5,0)),"",VLOOKUP($B113,data11[],5,0)) -> 
A114: 108 | D114: =IF(ISNA(VLOOKUP($B114,data11[],5,0)),"",VLOOKUP($B114,data11[],5,0)) -> 
A115: 109 | D115: =IF(ISNA(VLOOKUP($B115,data11[],5,0)),"",VLOOKUP($B115,data11[],5,0)) -> 
A116: 110 | D116: =IF(ISNA(VLOOKUP($B116,data11[],5,0)),"",VLOOKUP($B116,data11[],5,0)) -> 
A117: 111 | D117: =IF(ISNA(VLOOKUP($B117,data11[],5,0)),"",VLOOKUP($B117,data11[],5,0)) -> 
A118: 112 | D118: =IF(ISNA(VLOOKUP($B118,data11[],5,0)),"",VLOOKUP($B118,data11[],5,0)) -> 
A119: 113 | D119: =IF(ISNA(VLOOKUP($B119,data11[],5,0)),"",VLOOKUP($B119,data11[],5,0)) -> 
A120: 114 | D120: =IF(ISNA(VLOOKUP($B120,data11[],5,0)),"",VLOOKUP($B120,data11[],5,0)) -> 
A121: 115 | D121: =IF(ISNA(VLOOKUP($B121,data11[],5,0)),"",VLOOKUP($B121,data11[],5,0)) -> 
A122: 116 | D122: =IF(ISNA(VLOOKUP($B122,data11[],5,0)),"",VLOOKUP($B122,data11[],5,0)) -> 
A123: 117 | D123: =IF(ISNA(VLOOKUP($B123,data11[],5,0)),"",VLOOKUP($B123,data11[],5,0)) -> 
A124: 118 | D124: =IF(ISNA(VLOOKUP($B124,data11[],5,0)),"",VLOOKUP($B124,data11[],5,0)) -> 
A125: 119 | D125: =IF(ISNA(VLOOKUP($B125,data11[],5,0)),"",VLOOKUP($B125,data11[],5,0)) -> 
A126: 120 | D126: =IF(ISNA(VLOOKUP($B126,data11[],5,0)),"",VLOOKUP($B126,data11[],5,0)) -> 
A127: 121 | D127: =IF(ISNA(VLOOKUP($B127,data11[],5,0)),"",VLOOKUP($B127,data11[],5,0)) -> 
A128: 122 | D128: =IF(ISNA(VLOOKUP($B128,data11[],5,0)),"",VLOOKUP($B128,data11[],5,0)) -> 
A129: 123 | D129: =IF(ISNA(VLOOKUP($B129,data11[],5,0)),"",VLOOKUP($B129,data11[],5,0)) -> 
A130: 124 | D130: =IF(ISNA(VLOOKUP($B130,data11[],5,0)),"",VLOOKUP($B130,data11[],5,0)) -> 
A131: 125 | D131: =IF(ISNA(VLOOKUP($B131,data11[],5,0)),"",VLOOKUP($B131,data11[],5,0)) -> 
A132: 126 | D132: =IF(ISNA(VLOOKUP($B132,data11[],5,0)),"",VLOOKUP($B132,data11[],5,0)) -> 
A133: 127 | D133: =IF(ISNA(VLOOKUP($B133,data11[],5,0)),"",VLOOKUP($B133,data11[],5,0)) -> 
A134: 128 | D134: =IF(ISNA(VLOOKUP($B134,data11[],5,0)),"",VLOOKUP($B134,data11[],5,0)) -> 
A135: 129 | D135: =IF(ISNA(VLOOKUP($B135,data11[],5,0)),"",VLOOKUP($B135,data11[],5,0)) -> 
A136: 130 | D136: =IF(ISNA(VLOOKUP($B136,data11[],5,0)),"",VLOOKUP($B136,data11[],5,0)) ->  | E136: =IF(B136="","",D136*C136) -> 
A137: 131 | D137: =IF(ISNA(VLOOKUP($B137,data11[],5,0)),"",VLOOKUP($B137,data11[],5,0)) -> 
A138: 132 | D138: =IF(ISNA(VLOOKUP($B138,data11[],5,0)),"",VLOOKUP($B138,data11[],5,0)) -> 
A139: 133 | D139: =IF(ISNA(VLOOKUP($B139,data11[],5,0)),"",VLOOKUP($B139,data11[],5,0)) -> 
A140: 134 | D140: =IF(ISNA(VLOOKUP($B140,data11[],5,0)),"",VLOOKUP($B140,data11[],5,0)) -> 
A141: 135 | D141: =IF(ISNA(VLOOKUP($B141,data11[],5,0)),"",VLOOKUP($B141,data11[],5,0)) -> 
A142: 136 | D142: =IF(ISNA(VLOOKUP($B142,data11[],5,0)),"",VLOOKUP($B142,data11[],5,0)) -> 
A143: 137 | D143: =IF(ISNA(VLOOKUP($B143,data11[],5,0)),"",VLOOKUP($B143,data11[],5,0)) -> 
A144: 138 | D144: =IF(ISNA(VLOOKUP($B144,data11[],5,0)),"",VLOOKUP($B144,data11[],5,0)) -> 
A145: 139 | D145: =IF(ISNA(VLOOKUP($B145,data11[],5,0)),"",VLOOKUP($B145,data11[],5,0)) -> 
A146: 140 | D146: =IF(ISNA(VLOOKUP($B146,data11[],5,0)),"",VLOOKUP($B146,data11[],5,0)) -> 
A147: 141 | D147: =IF(ISNA(VLOOKUP($B147,data11[],5,0)),"",VLOOKUP($B147,data11[],5,0)) -> 
A148: 142 | D148: =IF(ISNA(VLOOKUP($B148,data11[],5,0)),"",VLOOKUP($B148,data11[],5,0)) -> 
A149: 143 | D149: =IF(ISNA(VLOOKUP($B149,data11[],5,0)),"",VLOOKUP($B149,data11[],5,0)) -> 
A150: 144 | D150: =IF(ISNA(VLOOKUP($B150,data11[],5,0)),"",VLOOKUP($B150,data11[],5,0)) -> 
A151: 145 | D151: =IF(ISNA(VLOOKUP($B151,data11[],5,0)),"",VLOOKUP($B151,data11[],5,0)) -> 
A152: 146 | D152: =IF(ISNA(VLOOKUP($B152,data11[],5,0)),"",VLOOKUP($B152,data11[],5,0)) -> 
A153: 147 | D153: =IF(ISNA(VLOOKUP($B153,data11[],5,0)),"",VLOOKUP($B153,data11[],5,0)) -> 
A154: 148 | D154: =IF(ISNA(VLOOKUP($B154,data11[],5,0)),"",VLOOKUP($B154,data11[],5,0)) -> 
A155: 149 | D155: =IF(ISNA(VLOOKUP($B155,data11[],5,0)),"",VLOOKUP($B155,data11[],5,0)) -> 
A156: 150 | D156: =IF(ISNA(VLOOKUP($B156,data11[],5,0)),"",VLOOKUP($B156,data11[],5,0)) -> 
A157: 151 | D157: =IF(ISNA(VLOOKUP($B157,data11[],5,0)),"",VLOOKUP($B157,data11[],5,0)) -> 
A158: 152 | D158: =IF(ISNA(VLOOKUP($B158,data11[],5,0)),"",VLOOKUP($B158,data11[],5,0)) -> 
A159: 153 | D159: =IF(ISNA(VLOOKUP($B159,data11[],5,0)),"",VLOOKUP($B159,data11[],5,0)) -> 
A160: 154 | D160: =IF(ISNA(VLOOKUP($B160,data11[],5,0)),"",VLOOKUP($B160,data11[],5,0)) -> 
A161: 155 | D161: =IF(ISNA(VLOOKUP($B161,data11[],5,0)),"",VLOOKUP($B161,data11[],5,0)) -> 
A162: 156 | D162: =IF(ISNA(VLOOKUP($B162,data11[],5,0)),"",VLOOKUP($B162,data11[],5,0)) -> 
A163: 157 | D163: =IF(ISNA(VLOOKUP($B163,data11[],5,0)),"",VLOOKUP($B163,data11[],5,0)) -> 
A164: 158 | D164: =IF(ISNA(VLOOKUP($B164,data11[],5,0)),"",VLOOKUP($B164,data11[],5,0)) -> 
A165: 159 | D165: =IF(ISNA(VLOOKUP($B165,data11[],5,0)),"",VLOOKUP($B165,data11[],5,0)) -> 
A166: 160 | D166: =IF(ISNA(VLOOKUP($B166,data11[],5,0)),"",VLOOKUP($B166,data11[],5,0)) -> 
A167: 161 | D167: =IF(ISNA(VLOOKUP($B167,data11[],5,0)),"",VLOOKUP($B167,data11[],5,0)) -> 
A168: 162 | D168: =IF(ISNA(VLOOKUP($B168,data11[],5,0)),"",VLOOKUP($B168,data11[],5,0)) -> 
A169: 163 | D169: =IF(ISNA(VLOOKUP($B169,data11[],5,0)),"",VLOOKUP($B169,data11[],5,0)) -> 
A170: 164 | D170: =IF(ISNA(VLOOKUP($B170,data11[],5,0)),"",VLOOKUP($B170,data11[],5,0)) -> 
A171: 165 | D171: =IF(ISNA(VLOOKUP($B171,data11[],5,0)),"",VLOOKUP($B171,data11[],5,0)) -> 
A172: 166 | D172: =IF(ISNA(VLOOKUP($B172,data11[],5,0)),"",VLOOKUP($B172,data11[],5,0)) -> 
A173: 167 | D173: =IF(ISNA(VLOOKUP($B173,data11[],5,0)),"",VLOOKUP($B173,data11[],5,0)) -> 
A174: 168 | D174: =IF(ISNA(VLOOKUP($B174,data11[],5,0)),"",VLOOKUP($B174,data11[],5,0)) -> 
A175: 169 | D175: =IF(ISNA(VLOOKUP($B175,data11[],5,0)),"",VLOOKUP($B175,data11[],5,0)) -> 
A176: 170 | D176: =IF(ISNA(VLOOKUP($B176,data11[],5,0)),"",VLOOKUP($B176,data11[],5,0)) -> 
A177: 171 | D177: =IF(ISNA(VLOOKUP($B177,data11[],5,0)),"",VLOOKUP($B177,data11[],5,0)) -> 
A178: 172 | D178: =IF(ISNA(VLOOKUP($B178,data11[],5,0)),"",VLOOKUP($B178,data11[],5,0)) -> 
A179: 173 | D179: =IF(ISNA(VLOOKUP($B179,data11[],5,0)),"",VLOOKUP($B179,data11[],5,0)) -> 
A180: 174 | D180: =IF(ISNA(VLOOKUP($B180,data11[],5,0)),"",VLOOKUP($B180,data11[],5,0)) -> 
A181: 175 | D181: =IF(ISNA(VLOOKUP($B181,data11[],5,0)),"",VLOOKUP($B181,data11[],5,0)) -> 
A182: 176 | D182: =IF(ISNA(VLOOKUP($B182,data11[],5,0)),"",VLOOKUP($B182,data11[],5,0)) -> 
A183: 177 | D183: =IF(ISNA(VLOOKUP($B183,data11[],5,0)),"",VLOOKUP($B183,data11[],5,0)) -> 
A184: 178 | D184: =IF(ISNA(VLOOKUP($B184,data11[],5,0)),"",VLOOKUP($B184,data11[],5,0)) -> 
A185: 179 | D185: =IF(ISNA(VLOOKUP($B185,data11[],5,0)),"",VLOOKUP($B185,data11[],5,0)) -> 
A186: 180 | D186: =IF(ISNA(VLOOKUP($B186,data11[],5,0)),"",VLOOKUP($B186,data11[],5,0)) -> 
A187: 181 | D187: =IF(ISNA(VLOOKUP($B187,data11[],5,0)),"",VLOOKUP($B187,data11[],5,0)) -> 
A188: 182 | D188: =IF(ISNA(VLOOKUP($B188,data11[],5,0)),"",VLOOKUP($B188,data11[],5,0)) -> 
A189: 183 | D189: =IF(ISNA(VLOOKUP($B189,data11[],5,0)),"",VLOOKUP($B189,data11[],5,0)) -> 
A190: 184 | D190: =IF(ISNA(VLOOKUP($B190,data11[],5,0)),"",VLOOKUP($B190,data11[],5,0)) -> 
A191: 185 | D191: =IF(ISNA(VLOOKUP($B191,data11[],5,0)),"",VLOOKUP($B191,data11[],5,0)) -> 
A192: 186 | D192: =IF(ISNA(VLOOKUP($B192,data11[],5,0)),"",VLOOKUP($B192,data11[],5,0)) -> 
A193: 187 | D193: =IF(ISNA(VLOOKUP($B193,data11[],5,0)),"",VLOOKUP($B193,data11[],5,0)) -> 
A194: 188 | D194: =IF(ISNA(VLOOKUP($B194,data11[],5,0)),"",VLOOKUP($B194,data11[],5,0)) -> 
A195: 189 | D195: =IF(ISNA(VLOOKUP($B195,data11[],5,0)),"",VLOOKUP($B195,data11[],5,0)) -> 
A196: 190 | D196: =IF(ISNA(VLOOKUP($B196,data11[],5,0)),"",VLOOKUP($B196,data11[],5,0)) -> 
A197: 191 | D197: =IF(ISNA(VLOOKUP($B197,data11[],5,0)),"",VLOOKUP($B197,data11[],5,0)) -> 
A198: 192 | D198: =IF(ISNA(VLOOKUP($B198,data11[],5,0)),"",VLOOKUP($B198,data11[],5,0)) -> 
A199: 193 | D199: =IF(ISNA(VLOOKUP($B199,data11[],5,0)),"",VLOOKUP($B199,data11[],5,0)) -> 
A200: 194 | D200: =IF(ISNA(VLOOKUP($B200,data11[],5,0)),"",VLOOKUP($B200,data11[],5,0)) ->  | E200: =IF(B200="","",D200*C200) -> 
A201: 195 | D201: =IF(ISNA(VLOOKUP($B201,data11[],5,0)),"",VLOOKUP($B201,data11[],5,0)) -> 
A202: 196 | D202: =IF(ISNA(VLOOKUP($B202,data11[],5,0)),"",VLOOKUP($B202,data11[],5,0)) -> 
... 4 more rows

Sheet الفاتورة
B1: فاتورة مبيعات
B2: شـــــــركة :
B3: اســــــــــــــــــــــم العميل : | D3: عميل رقم 1
B4: رقــــــــــــــــــــــــــم الهاتف :
B5: رقـــــــــــــــــــم البطاقة :
B6: عنــــــوان العميل :
B7: تاريخ الفاتورة :
B9: م | C9: الصنف | E9: السعر | F9: ملاحظات
B10: 1 | C10: نوم | E10: =IF(ISNA(VLOOKUP($C10,غرف,2,0)),"",VLOOKUP($C10,غرف,2,0)) -> 6600
B11: 2 | C11: نوم | E11: 6600
B12: 3 | C12: نوم | E12: 6600
B13: 4 | C13: نوم | E13: 6600
B14: 5 | C14: نوم | E14: 6600
B15: 6
B16: 7
B17: 8
B18: اجمالى | E18: =SUM(E10:E17) -> 33000
B19: خصم | E19: 9800
B20: اجمالى الفاتورة | E20: =E18-E19 -> 23200
B21: مقدم | E21: 9000
B22: باق | E22: =E20-E21 -> 14200
C25: النسبة | D25: 10 | E25: المبلغ | F25: =D25*E22/100 -> 1420 | O25: نعم
E26: اجمالى الباقى | F26: =(F25+E22)-E28 -> 15520 | O26: لا
B27: م | C27: التاريخ الاصلى | D27: تاريخ السداد الفعلى | E27: المسدد | F27: الباق | J27: نوع السداد | K27: الفائدة | L27: المبلغ | M27: جملة
B28: 1 | C28: 2023-12-15 | D28: 2024-12-15 | E28: 100 | F28: =M28-E28 -> 16972 | I28: =IF(C28=D28,"نعم","لا") -> لا | J28: =IF(C28=D28,"نعم","لا") -> لا | K28: =IF(J28="نعم","0",L28*D25/100) -> 1552 | L28: =F26 -> 15520 | M28: =L28+K28 -> 17072
B29: 2 | F29: 16972 | I29: =IF(C29=D29,"نعم","لا") -> نعم | J29: =IF(C29=D29,"نعم","لا") -> نعم | K29: =IF(J29="نعم","0",L29*D25/100) -> 0 | L29: =F28 -> 16972 | M29: =L29+K29 -> 16972
B30: 3 | F30: 16972 | I30: نعم | J30: نعم | K30: =IF(J30="نعم","0",L30*D25/100) -> 0 | L30: =F29 -> 16972 | M30: =L30+K30 -> 16972
B31: 4 | F31: 16972 | I31: نعم | J31: نعم | K31: =IF(J31="نعم","0",L31*D25/100) -> 0 | L31: =F30 -> 16972 | M31: 16972
B32: 5 | F32: 16972 | I32: نعم | J32: نعم | K32: =IF(J32="نعم","0",L32*D25/100) -> 0 | L32: 16972 | M32: 16972
B33: 6 | F33: 16972 | I33: نعم | J33: نعم | K33: =IF(J33="نعم","0",L33*D25/100) -> 0 | L33: 16972 | M33: 16972
B34: 7 | F34: 16972 | I34: نعم | J34: نعم | K34: =IF(J34="نعم","0",L34*D25/100) -> 0 | L34: 16972 | M34: 16972
B35: 8 | F35: 16972 | I35: نعم | J35: نعم | K35: =IF(J35="نعم","0",L35*D25/100) -> 0 | L35: 16972 | M35: 16972
